[Event "Rapid Tournament (RAP)"]
[Site "Biel, Switzerland"]
[Date "2026.07.12"]
[Round "7.30"]
[White "Huang, Hsuan-Chen"]
[Black "Hashem, Khaled"]
[Result "0-1"]
[TimeControl "15 + 5"]
[WhiteTitle "-"]
[BlackTitle "-"]
[WhiteFideId "16303121"]
[BlackFideId "10300201"]
[WhiteElo "1648"]
[BlackElo "1926"]

1. d4 {[%clk 00:15:07]} {[%emt 00:00:03]} d5 {[%clk 00:15:09]} 2. Nf3 {[%clk
00:15:11]} {[%emt 00:00:01]} Nf6 {[%clk 00:15:14]} 3. e3 {[%clk 00:15:14]}
{[%emt 00:00:03]} Bf5 {[%clk 00:15:17]} {[%emt 00:00:04]} 4. Nbd2 {[%clk
00:15:15]} {[%emt 00:00:02]} e6 {[%clk 00:15:21]} {[%emt 00:00:01]} 5. h3
{[%clk 00:15:15]} {[%emt 00:00:04]} h6 {[%clk 00:15:25]} {[%emt 00:00:01]} 6.
Be2 {[%clk 00:15:19]} {[%emt 00:00:02]} c5 {[%clk 00:15:20]} {[%emt 00:00:10]}
7. b3 {[%clk 00:15:13]} {[%emt 00:00:10]} Nc6 {[%clk 00:15:22]} {[%emt
00:00:03]} 8. Bb2 {[%clk 00:15:17]} {[%emt 00:00:02]} Bd6 {[%clk 00:14:58]}
{[%emt 00:00:28]} 9. O-O {[%clk 00:15:14]} {[%emt 00:00:07]} O-O {[%clk
00:15:01]} {[%emt 00:00:02]} 10. dxc5 {[%clk 00:14:39]} {[%emt 00:00:40]} Bxc5
{[%clk 00:15:04]} {[%emt 00:00:02]} 11. c4 {[%clk 00:14:30]} {[%emt 00:00:13]}
d4 {[%clk 00:12:47]} {[%emt 00:02:22]} 12. exd4 {[%clk 00:12:45]} {[%emt
00:01:51]} Nxd4 {[%clk 00:12:51]} {[%emt 00:00:01]} 13. Nxd4 {[%clk 00:12:15]}
{[%emt 00:00:35]} Bxd4 {[%clk 00:12:55]} 14. Bxd4 {[%clk 00:12:17]} {[%emt
00:00:02]} Qxd4 {[%clk 00:12:59]} 15. Nf3 {[%clk 00:12:19]} {[%emt 00:00:03]}
Qc5 {[%clk 00:10:37]} {[%emt 00:02:28]} 16. Qd4 {[%clk 00:12:11]} {[%emt
00:00:13]} Qc7 {[%clk 00:10:41]} 17. Rfd1 {[%clk 00:11:02]} {[%emt 00:01:14]}
a6 {[%clk 00:09:32]} {[%emt 00:01:15]} 18. Qe5 {[%clk 00:09:53]} {[%emt
00:01:13]} Rac8 {[%clk 00:06:39]} {[%emt 00:02:57]} 19. Rd4 {[%clk 00:08:04]}
{[%emt 00:01:54]} Qxe5 {[%clk 00:03:54]} {[%emt 00:02:51]} 20. Nxe5 {[%clk
00:08:07]} {[%emt 00:00:01]} Rc5 {[%clk 00:03:58]} {[%emt 00:00:02]} 21. f4
{[%clk 00:06:59]} {[%emt 00:01:12]} g5 {[%clk 00:03:02]} {[%emt 00:01:01]} 22.
b4 {[%clk 00:06:10]} {[%emt 00:00:54]} Rc7 {[%clk 00:02:25]} {[%emt 00:00:42]}
23. fxg5 {[%clk 00:05:45]} {[%emt 00:00:31]} hxg5 {[%clk 00:02:29]} {[%emt
00:00:01]} 24. g4 {[%clk 00:05:43]} {[%emt 00:00:07]} Be4 {[%clk 00:02:13]}
{[%emt 00:00:21]} 25. Rf1 {[%clk 00:05:32]} {[%emt 00:00:16]} Kg7 {[%clk
00:01:55]} {[%emt 00:00:23]} 26. Rxf6 {[%clk 00:05:19]} {[%emt 00:00:18]} Kxf6
{[%clk 00:01:58]} {[%emt 00:00:01]} 27. Rxe4 {[%clk 00:05:17]} {[%emt
00:00:07]} Rd8 {[%clk 00:02:01]} {[%emt 00:00:02]} 28. Nf3 {[%clk 00:04:34]}
{[%emt 00:00:48]} a5 {[%clk 00:01:48]} {[%emt 00:00:18]} 29. a3 {[%clk
00:04:09]} {[%emt 00:00:31]} axb4 {[%clk 00:01:52]} {[%emt 00:00:01]} 30. axb4
{[%clk 00:04:13]} {[%emt 00:00:01]} Ra8 {[%clk 00:01:56]} 31. Kf2 {[%clk
00:03:33]} {[%emt 00:00:45]} Ra2 {[%clk 00:01:57]} {[%emt 00:00:05]} 32. Ne5
{[%clk 00:03:10]} {[%emt 00:00:27]} Ra3 {[%clk 00:00:39]} {[%emt 00:01:23]} 33.
c5 {[%clk 00:02:00]} {[%emt 00:01:16]} Rxh3 {[%clk 00:00:32]} {[%emt 00:00:12]}
34. Nc4 {[%clk 00:02:00]} {[%emt 00:00:04]} Rd7 {[%clk 00:00:11]} {[%emt
00:00:26]} 35. Nd6 {[%clk 00:01:58]} {[%emt 00:00:07]} b6 {[%clk 00:00:15]}
{[%emt 00:00:01]} 36. Ne8+ {[%clk 00:01:43]} {[%emt 00:00:20]} Ke7 {[%clk
00:00:20]} {[%emt 00:00:01]} 37. c6 {[%clk 00:01:42]} {[%emt 00:00:05]} Rd8
{[%clk 00:00:22]} {[%emt 00:00:03]} 38. c7 {[%clk 00:01:16]} {[%emt 00:00:31]}
Rc8 {[%clk 00:00:24]} {[%emt 00:00:03]} 39. Ba6 {[%clk 00:01:20]} {[%emt
00:00:01]} Rxe8 {[%clk 00:00:25]} {[%emt 00:00:05]} 40. c8=Q {[%clk 00:01:22]}
{[%emt 00:00:03]} Rxc8 {[%clk 00:00:29]} 41. Bxc8 {[%clk 00:01:26]} {[%emt
00:00:01]} Rc3 {[%clk 00:00:30]} {[%emt 00:00:04]} 42. Ba6 {[%clk 00:01:25]}
{[%emt 00:00:06]} Ra3 {[%clk 00:00:27]} {[%emt 00:00:07]} 43. Bb7 {[%clk
00:01:23]} {[%emt 00:00:07]} Rb3 {[%clk 00:00:29]} {[%emt 00:00:03]} 44. Bc6
{[%clk 00:01:22]} {[%emt 00:00:06]} Kd6 {[%clk 00:00:32]} {[%emt 00:00:03]} 45.
b5 {[%clk 00:01:26]} {[%emt 00:00:01]} f5 {[%clk 00:00:28]} {[%emt 00:00:09]}
46. Re3 {[%clk 00:00:51]} {[%emt 00:00:39]} Rb2+ {[%clk 00:00:25]} {[%emt
00:00:08]} 47. Re2 {[%clk 00:00:55]} {[%emt 00:00:01]} Rb3 {[%clk 00:00:28]}
{[%emt 00:00:02]} 48. Rd2+ {[%clk 00:00:47]} {[%emt 00:00:14]} Ke5 {[%clk
00:00:32]} 49. gxf5 {[%clk 00:00:41]} {[%emt 00:00:12]} exf5 {[%clk 00:00:36]}
50. Rd5+ {[%clk 00:00:35]} {[%emt 00:00:11]} Kf4 {[%clk 00:00:39]} {[%emt
00:00:03]} 51. Bd7 {[%clk 00:00:35]} {[%emt 00:00:04]} Rb2+ {[%clk 00:00:42]}
{[%emt 00:00:02]} 52. Ke1 {[%clk 00:00:37]} {[%emt 00:00:02]} Ke3 {[%clk
00:00:08]} {[%emt 00:00:41]} 53. Bxf5 {[%clk 00:00:40]} {[%emt 00:00:01]} Re2+
{[%clk 00:00:11]} {[%emt 00:00:02]} 54. Kd1 {[%clk 00:00:38]} {[%emt 00:00:08]}
Rh2 {[%clk 00:00:14]} {[%emt 00:00:01]} 55. Rd3+ {[%clk 00:00:41]} {[%emt
00:00:02]} Kf4 {[%clk 00:00:18]} {[%emt 00:00:02]} 56. Bd7 {[%clk 00:00:45]} g4
{[%clk 00:00:22]} {[%emt 00:00:01]} 57. Rd4+ {[%clk 00:00:49]} Ke3 {[%clk
00:00:27]} {[%emt 00:00:01]} 58. Rd6 {[%clk 00:00:31]} {[%emt 00:00:23]} g3
{[%clk 00:00:29]} {[%emt 00:00:03]} 59. Bc6 {[%clk 00:00:25]} {[%emt 00:00:11]}
g2 {[%clk 00:00:12]} {[%emt 00:00:22]} 60. Re6+ {[%clk 00:00:21]} {[%emt
00:00:09]} Kf4 {[%clk 00:00:12]} {[%emt 00:00:05]} 61. Re1 {[%clk 00:00:20]}
{[%emt 00:00:06]} Kg3 {[%clk 00:00:15]} {[%emt 00:00:02]} 62. Ke2 {[%clk
00:00:19]} {[%emt 00:00:05]} g1=Q+ {[%clk 00:00:16]} {[%emt 00:00:05]} 0-1

[Event "Rapid Tournament (RAP)"]
[Site "Biel, Switzerland"]
[Date "2026.07.12"]
[Round "7.31"]
[White "Pinson, Clement"]
[Black "Berger, Vincent"]
[Result "1-0"]
[TimeControl "15 + 5"]
[WhiteTitle "-"]
[BlackTitle "-"]
[WhiteFideId "26098660"]
[BlackFideId "1317822"]
[WhiteElo "1924"]
[BlackElo "1877"]

1. e4 {[%clk 00:15:09]} c6 {[%clk 00:15:08]} {[%emt 00:00:03]} 2. d4 {[%clk
00:15:13]} {[%emt 00:00:01]} d5 {[%clk 00:15:11]} {[%emt 00:00:03]} 3. exd5
{[%clk 00:15:08]} {[%emt 00:00:09]} cxd5 {[%clk 00:15:14]} {[%emt 00:00:02]} 4.
c4 {[%clk 00:15:12]} {[%emt 00:00:01]} Nf6 {[%clk 00:15:14]} {[%emt 00:00:05]}
5. Nc3 {[%clk 00:15:16]} {[%emt 00:00:02]} Nc6 {[%clk 00:15:16]} {[%emt
00:00:02]} 6. Nf3 {[%clk 00:15:16]} {[%emt 00:00:04]} e6 {[%clk 00:15:15]}
{[%emt 00:00:07]} 7. c5 {[%clk 00:15:18]} {[%emt 00:00:03]} b6 {[%clk
00:14:20]} {[%emt 00:01:00]} 8. Bb5 {[%clk 00:15:17]} {[%emt 00:00:06]} Bd7
{[%clk 00:14:20]} {[%emt 00:00:05]} 9. Qa4 {[%clk 00:14:34]} {[%emt 00:00:48]}
Qc8 {[%clk 00:14:05]} {[%emt 00:00:20]} 10. Ne5 {[%clk 00:13:08]} {[%emt
00:01:31]} Nxe5 {[%clk 00:12:03]} {[%emt 00:02:08]} 11. dxe5 {[%clk 00:13:10]}
{[%emt 00:00:02]} Bxb5 {[%clk 00:12:03]} {[%emt 00:00:05]} 12. Nxb5 {[%clk
00:12:46]} {[%emt 00:00:29]} Nd7 {[%clk 00:11:21]} {[%emt 00:00:46]} 13. cxb6
{[%clk 00:12:40]} {[%emt 00:00:11]} axb6 {[%clk 00:11:01]} {[%emt 00:00:26]} 14.
Qxa8 {[%clk 00:12:03]} {[%emt 00:00:42]} Qxa8 {[%clk 00:10:12]} {[%emt
00:00:54]} 15. Nc7+ {[%clk 00:12:06]} {[%emt 00:00:02]} Kd8 {[%clk 00:09:56]}
{[%emt 00:00:21]} 16. Nxa8 {[%clk 00:12:08]} {[%emt 00:00:03]} Kc8 {[%clk
00:08:41]} {[%emt 00:01:20]} 17. Be3 {[%clk 00:11:59]} {[%emt 00:00:13]} Kb7
{[%clk 00:08:45]} {[%emt 00:00:02]} 18. Nxb6 {[%clk 00:11:40]} {[%emt
00:00:24]} Nxb6 {[%clk 00:08:48]} {[%emt 00:00:02]} 1-0

[Event "Rapid Tournament (RAP)"]
[Site "Biel, Switzerland"]
[Date "2026.07.12"]
[Round "7.32"]
[White "Yang, Sung-Jui"]
[Black "Aryan, Mehta"]
[Result "1/2-1/2"]
[TimeControl "15 + 5"]
[WhiteTitle "-"]
[BlackTitle "-"]
[WhiteFideId "16301048"]
[BlackFideId "33329664"]
[WhiteElo "1825"]
[BlackElo "1921"]

1. d4 {[%clk 00:14:56]} {[%emt 00:00:12]} Nf6 {[%clk 00:15:08]} {[%emt
00:00:03]} 2. Nf3 {[%clk 00:14:54]} {[%emt 00:00:01]} e6 {[%clk 00:15:10]}
{[%emt 00:00:08]} 3. c4 {[%clk 00:14:58]} {[%emt 00:00:02]} Bb4+ {[%clk
00:15:12]} {[%emt 00:00:03]} 4. Nbd2 {[%clk 00:15:02]} {[%emt 00:00:01]} O-O
{[%clk 00:14:47]} {[%emt 00:00:29]} 5. a3 {[%clk 00:15:06]} {[%emt 00:00:02]}
Bxd2+ {[%clk 00:14:46]} {[%emt 00:00:05]} 6. Qxd2 {[%clk 00:15:04]} {[%emt
00:00:07]} b6 {[%clk 00:14:44]} {[%emt 00:00:08]} 7. e3 {[%clk 00:15:05]}
{[%emt 00:00:03]} Bb7 {[%clk 00:14:47]} {[%emt 00:00:02]} 8. Be2 {[%clk
00:14:57]} {[%emt 00:00:13]} d6 {[%clk 00:14:50]} {[%emt 00:00:02]} 9. O-O
{[%clk 00:15:00]} {[%emt 00:00:03]} Nbd7 {[%clk 00:14:52]} 10. b4 {[%clk
00:14:57]} {[%emt 00:00:09]} Qe7 {[%clk 00:14:48]} {[%emt 00:00:08]} 11. Bb2
{[%clk 00:15:00]} {[%emt 00:00:03]} e5 {[%clk 00:14:48]} {[%emt 00:00:05]} 12.
Qc2 {[%clk 00:13:38]} {[%emt 00:01:27]} Rfe8 {[%clk 00:14:17]} {[%emt
00:00:36]} 13. Rfd1 {[%clk 00:13:08]} {[%emt 00:00:35]} Rad8 {[%clk 00:14:18]}
{[%emt 00:00:04]} 14. Rac1 {[%clk 00:12:59]} {[%emt 00:00:13]} c5 {[%clk
00:12:47]} {[%emt 00:01:37]} 15. dxc5 {[%clk 00:11:57]} {[%emt 00:01:07]} dxc5
{[%clk 00:12:28]} {[%emt 00:00:24]} 16. Qa4 {[%clk 00:11:45]} {[%emt 00:00:18]}
a6 {[%clk 00:12:02]} {[%emt 00:00:30]} 17. Rc2 {[%clk 00:10:15]} {[%emt
00:01:35]} e4 {[%clk 00:10:20]} {[%emt 00:01:47]} 18. Ne1 {[%clk 00:10:17]}
{[%emt 00:00:03]} Nf8 {[%clk 00:10:01]} {[%emt 00:00:24]} 19. Rcd2 {[%clk
00:10:03]} {[%emt 00:00:19]} Ne6 {[%clk 00:09:59]} {[%emt 00:00:06]} 20. Be5
{[%clk 00:08:29]} {[%emt 00:01:40]} h6 {[%clk 00:08:43]} {[%emt 00:01:21]} 21.
Rd6 {[%clk 00:07:11]} {[%emt 00:01:23]} Rxd6 {[%clk 00:02:57]} {[%emt
00:05:51]} 22. Bxd6 {[%clk 00:06:33]} {[%emt 00:00:42]} Qd7 {[%clk 00:02:42]}
{[%emt 00:00:20]} 23. Qc2 {[%clk 00:05:32]} {[%emt 00:01:06]} Qc8 {[%clk
00:02:35]} {[%emt 00:00:12]} 24. Be5 {[%clk 00:05:16]} {[%emt 00:00:22]} Rd8
{[%clk 00:02:10]} {[%emt 00:00:31]} 25. Bb2 {[%clk 00:04:28]} {[%emt 00:00:53]}
Rd7 {[%clk 00:01:40]} {[%emt 00:00:35]} 26. Bxf6 {[%clk 00:03:58]} {[%emt
00:00:35]} gxf6 {[%clk 00:01:43]} {[%emt 00:00:01]} 27. Bg4 {[%clk 00:03:56]}
{[%emt 00:00:07]} Rxd1 {[%clk 00:01:17]} {[%emt 00:00:32]} 28. Bxd1 {[%clk
00:03:11]} {[%emt 00:00:49]} Qd7 {[%clk 00:00:48]} {[%emt 00:00:34]} 29. g3
{[%clk 00:03:06]} {[%emt 00:00:10]} Ng5 {[%clk 00:00:43]} {[%emt 00:00:10]} 30.
h4 {[%clk 00:02:37]} {[%emt 00:00:35]} Ne6 {[%clk 00:00:37]} {[%emt 00:00:11]}
31. Bg4 {[%clk 00:02:21]} {[%emt 00:00:18]} Qd6 {[%clk 00:00:40]} {[%emt
00:00:04]} 32. Qd1 {[%clk 00:02:09]} {[%emt 00:00:17]} Qxd1 {[%clk 00:00:35]}
{[%emt 00:00:10]} 33. Bxd1 {[%clk 00:02:13]} Kf8 {[%clk 00:00:22]} {[%emt
00:00:18]} 34. Kf1 {[%clk 00:02:01]} {[%emt 00:00:17]} cxb4 {[%clk 00:00:16]}
{[%emt 00:00:11]} 35. axb4 {[%clk 00:02:05]} a5 {[%clk 00:00:21]} {[%emt
00:00:01]} 36. bxa5 {[%clk 00:02:00]} {[%emt 00:00:09]} bxa5 {[%clk 00:00:25]}
37. Ke2 {[%clk 00:01:48]} {[%emt 00:00:16]} Ba6 {[%emt 00:00:05]} 38. Bb3
{[%clk 00:01:45]} {[%emt 00:00:08]} Ke7 {[%clk 00:00:16]} {[%emt 00:00:15]} 39.
Kd2 {[%clk 00:01:46]} {[%emt 00:00:02]} Nc5 {[%clk 00:00:17]} {[%emt 00:00:06]}
40. Ba2 {[%clk 00:01:41]} {[%emt 00:00:09]} Kd6 {[%clk 00:00:20]} {[%emt
00:00:04]} 41. Kc3 {[%clk 00:01:40]} {[%emt 00:00:04]} Ke5 {[%clk 00:00:23]}
{[%emt 00:00:03]} 42. Nc2 {[%clk 00:01:35]} {[%emt 00:00:10]} Nd3 {[%clk
00:00:21]} {[%emt 00:00:08]} 43. Nd4 {[%clk 00:01:29]} {[%emt 00:00:11]} Nxf2
{[%clk 00:00:19]} {[%emt 00:00:06]} 44. c5 {[%clk 00:01:32]} {[%emt 00:00:02]}
Nh1 {[%clk 00:00:10]} {[%emt 00:00:14]} 45. Nc6+ {[%clk 00:01:25]} {[%emt
00:00:12]} Kf5 {[%clk 00:00:11]} {[%emt 00:00:04]} 46. Nxa5 {[%clk 00:01:27]}
{[%emt 00:00:04]} Nxg3 {[%clk 00:00:11]} {[%emt 00:00:05]} 47. Bxf7 {[%clk
00:01:24]} {[%emt 00:00:07]} Ke5 {[%clk 00:00:13]} {[%emt 00:00:04]} 48. c6
{[%clk 00:01:18]} {[%emt 00:00:11]} Kd6 {[%clk 00:00:15]} {[%emt 00:00:02]} 49.
Kd4 {[%clk 00:01:18]} {[%emt 00:00:04]} Bb5 {[%clk 00:00:12]} {[%emt 00:00:09]}
50. Be8 {[%clk 00:01:11]} {[%emt 00:00:12]} Kc7 {[%clk 00:00:07]} {[%emt
00:00:10]} 51. Kd5 {[%clk 00:01:01]} {[%emt 00:00:15]} Nf5 {[%clk 00:00:08]}
{[%emt 00:00:04]} 52. Kxe4 {[%clk 00:00:58]} {[%emt 00:00:08]} Nd6+ {[%clk
00:00:13]} 53. Kd5 {[%clk 00:00:55]} {[%emt 00:00:07]} Nxe8 {[%clk 00:00:17]}
54. Ke6 {[%clk 00:00:59]} {[%emt 00:00:01]} Kb6 {[%clk 00:00:13]} {[%emt
00:00:09]} 55. Kf7 {[%clk 00:00:43]} {[%emt 00:00:21]} Nd6+ {[%clk 00:00:08]}
{[%emt 00:00:10]} 56. Kxf6 {[%clk 00:00:45]} {[%emt 00:00:03]} Kxa5 {[%clk
00:00:12]} 57. Kg6 {[%clk 00:00:45]} {[%emt 00:00:05]} Bxc6 {[%clk 00:00:12]}
{[%emt 00:00:06]} 58. Kxh6 {[%clk 00:00:48]} {[%emt 00:00:01]} Nf5+ {[%clk
00:00:16]} {[%emt 00:00:02]} 59. Kg5 {[%clk 00:00:48]} {[%emt 00:00:04]} Nxe3
{[%clk 00:00:20]} {[%emt 00:00:01]} 60. h5 {[%clk 00:00:52]} {[%emt 00:00:01]}
Nc4 {[%clk 00:00:08]} {[%emt 00:00:17]} 61. h6 {[%clk 00:00:56]} {[%emt
00:00:01]} Be4 {[%clk 00:00:12]} {[%emt 00:00:02]} 62. Kf6 {[%clk 00:00:59]}
{[%emt 00:00:01]} Ne3 {[%clk 00:00:08]} {[%emt 00:00:09]} 63. Kf7 {[%clk
00:00:53]} {[%emt 00:00:10]} Ng4 {[%clk 00:00:11]} {[%emt 00:00:03]} 64. Kg7
{[%clk 00:00:50]} {[%emt 00:00:08]} Kb6 {[%clk 00:00:11]} {[%emt 00:00:06]} 65.
h7 {[%clk 00:00:54]} {[%emt 00:00:01]} Bxh7 {[%clk 00:00:13]} {[%emt 00:00:02]}
66. Kxh7 {[%clk 00:00:51]} {[%emt 00:00:01]} 1/2-1/2

[Event "Rapid Tournament (RAP)"]
[Site "Biel, Switzerland"]
[Date "2026.07.12"]
[Round "7.33"]
[White "Pinelli, Gian"]
[Black "Menzi, Jonas"]
[Result "0-1"]
[TimeControl "15 + 5"]
[WhiteTitle "-"]
[BlackTitle "-"]
[WhiteFideId "1348710"]
[BlackFideId "1345133"]
[WhiteElo "1774"]
[BlackElo "2114"]

1. d4 {[%emt 00:01:21]} Nf6 {[%emt 00:00:02]} 2. c4 {[%emt 00:00:04]} e6 3. Nc3
{[%clk 00:15:05]} Bb4 {[%clk 00:15:12]} {[%emt 00:00:07]} 4. Qc2 {[%clk
00:15:18]} b6 {[%clk 00:15:15]} {[%emt 00:00:01]} 5. a3 {[%clk 00:15:20]}
{[%emt 00:00:06]} Bxc3+ {[%clk 00:15:15]} {[%emt 00:00:03]} 6. Qxc3 {[%clk
00:15:22]} {[%emt 00:00:02]} Bb7 {[%clk 00:15:16]} {[%emt 00:00:03]} 7. Bg5
{[%clk 00:15:23]} {[%emt 00:00:04]} h6 {[%clk 00:14:39]} {[%emt 00:00:43]} 8.
Bh4 {[%clk 00:15:27]} {[%emt 00:00:02]} g5 {[%clk 00:14:38]} {[%emt 00:00:05]}
9. Bg3 {[%clk 00:15:31]} {[%emt 00:00:01]} Ne4 {[%clk 00:14:42]} 10. Qc2 {[%clk
00:15:35]} d6 {[%clk 00:14:36]} {[%emt 00:00:11]} 11. e3 {[%clk 00:15:37]}
{[%emt 00:00:03]} Nd7 {[%clk 00:14:32]} {[%emt 00:00:09]} 12. Ne2 {[%clk
00:15:40]} {[%emt 00:00:02]} h5 {[%clk 00:11:50]} {[%emt 00:02:47]} 13. f3
{[%clk 00:15:41]} {[%emt 00:00:04]} Nxg3 {[%clk 00:11:53]} {[%emt 00:00:01]} 14.
hxg3 {[%clk 00:15:41]} {[%emt 00:00:05]} f5 {[%clk 00:11:12]} {[%emt 00:00:47]}
15. Nc3 {[%clk 00:14:45]} {[%emt 00:01:01]} Qf6 {[%clk 00:11:05]} {[%emt
00:00:12]} 16. Bd3 {[%clk 00:14:36]} {[%emt 00:00:13]} O-O-O {[%clk 00:10:58]}
{[%emt 00:00:12]} 17. b4 {[%clk 00:13:50]} {[%emt 00:00:52]} h4 {[%clk
00:07:22]} {[%emt 00:03:41]} 18. Rb1 {[%clk 00:10:55]} {[%emt 00:02:59]} hxg3
{[%clk 00:07:12]} {[%emt 00:00:15]} 19. Rf1 {[%clk 00:10:59]} {[%emt 00:00:02]}
Rh2 {[%clk 00:06:23]} {[%emt 00:00:54]} 20. c5 {[%clk 00:10:28]} {[%emt
00:00:36]} dxc5 {[%clk 00:01:06]} {[%emt 00:05:23]} 21. bxc5 {[%clk 00:10:30]}
{[%emt 00:00:03]} Nxc5 {[%clk 00:01:10]} {[%emt 00:00:01]} 22. dxc5 {[%clk
00:10:23]} {[%emt 00:00:11]} Qe5 {[%clk 00:01:13]} 23. Nd1 {[%clk 00:09:36]}
{[%emt 00:00:52]} g4 {[%clk 00:00:46]} {[%emt 00:00:33]} 24. c6 {[%clk
00:09:25]} {[%emt 00:00:16]} Qa5+ {[%clk 00:00:25]} {[%emt 00:00:25]} 25. Rb4
{[%clk 00:09:15]} {[%emt 00:00:14]} Ba6 {[%clk 00:00:08]} {[%emt 00:00:24]} 26.
Bxa6+ {[%clk 00:08:22]} {[%emt 00:00:58]} Qxa6 {[%clk 00:00:13]} 27. Ra4 {[%clk
00:08:05]} {[%emt 00:00:22]} Qb5 {[%clk 00:00:17]} 28. fxg4 {[%clk 00:07:45]}
{[%emt 00:00:24]} Rd6 {[%clk 00:00:08]} {[%emt 00:00:14]} 29. Rxa7 {[%clk
00:07:33]} {[%emt 00:00:17]} Rxc6 {[%clk 00:00:11]} {[%emt 00:00:02]} 30. Ra8+
{[%clk 00:06:12]} {[%emt 00:01:26]} Kb7 {[%clk 00:00:11]} {[%emt 00:00:06]} 31.
Qa4 {[%clk 00:06:12]} {[%emt 00:00:04]} Qxa4 {[%clk 00:00:14]} {[%emt
00:00:02]} 32. Rxa4 {[%clk 00:06:16]} {[%emt 00:00:01]} Rxg2 {[%clk 00:00:15]}
{[%emt 00:00:04]} 33. Rh1 {[%clk 00:04:48]} {[%emt 00:01:32]} Rcc2 {[%clk
00:00:15]} {[%emt 00:00:06]} 34. Kf1 {[%clk 00:04:46]} {[%emt 00:00:07]} Rgd2
{[%clk 00:00:13]} {[%emt 00:00:06]} 35. Ke1 {[%clk 00:04:38]} {[%emt 00:00:14]}
Re2+ {[%clk 00:00:16]} {[%emt 00:00:01]} 36. Kf1 {[%clk 00:04:42]} g2+ {[%clk
00:00:13]} {[%emt 00:00:09]} 37. Kg1 {[%clk 00:04:39]} {[%emt 00:00:07]}
gxh1=Q+ {[%clk 00:00:11]} {[%emt 00:00:07]} 38. Kxh1 {[%clk 00:04:40]} {[%emt
00:00:03]} Re1# {[%emt 00:00:05]} 0-1

[Event "Rapid Tournament (RAP)"]
[Site "Biel, Switzerland"]
[Date "2026.07.12"]
[Round "7.34"]
[White "Piazza, Carlo"]
[Black "Rohde, Bernhard"]
[Result "1-0"]
[TimeControl "15 + 5"]
[WhiteTitle "-"]
[BlackTitle "-"]
[WhiteFideId "809683"]
[BlackFideId "1323016"]
[WhiteElo "2076"]
[BlackElo "1834"]

1. e4 {[%clk 00:15:09]} {[%emt 00:00:57]} e6 {[%clk 00:15:10]} {[%emt
00:00:02]} 2. d3 {[%clk 00:15:13]} {[%emt 00:00:01]} c5 {[%clk 00:15:05]}
{[%emt 00:00:12]} 3. Nf3 {[%clk 00:15:15]} Nc6 {[%clk 00:15:09]} {[%emt
00:00:02]} 4. g3 {[%clk 00:15:19]} Qb6 {[%clk 00:13:53]} {[%emt 00:01:21]} 5.
Bg2 {[%clk 00:15:07]} {[%emt 00:00:16]} Be7 {[%clk 00:13:15]} {[%emt 00:00:44]}
6. O-O {[%clk 00:15:08]} {[%emt 00:00:03]} Nf6 {[%clk 00:13:13]} {[%emt
00:00:07]} 7. c3 {[%clk 00:14:26]} {[%emt 00:00:48]} d5 {[%clk 00:12:55]}
{[%emt 00:00:23]} 8. e5 {[%clk 00:13:38]} {[%emt 00:00:52]} Nd7 {[%clk
00:11:32]} {[%emt 00:01:28]} 9. Re1 {[%clk 00:13:40]} {[%emt 00:00:03]} d4
{[%clk 00:11:06]} {[%emt 00:00:32]} 10. c4 {[%clk 00:13:35]} {[%emt 00:00:10]}
Qc7 {[%clk 00:11:10]} {[%emt 00:00:01]} 11. Qe2 {[%clk 00:13:34]} {[%emt
00:00:06]} O-O {[%clk 00:10:40]} {[%emt 00:00:34]} 12. h4 {[%clk 00:12:13]}
{[%emt 00:01:26]} h6 {[%clk 00:10:40]} {[%emt 00:00:05]} 13. Bf4 {[%clk
00:11:53]} {[%emt 00:00:25]} Re8 {[%clk 00:10:13]} {[%emt 00:00:33]} 14. Nbd2
{[%clk 00:11:51]} {[%emt 00:00:06]} Nf8 {[%clk 00:10:08]} {[%emt 00:00:11]} 15.
h5 {[%clk 00:11:52]} {[%emt 00:00:03]} Qd8 {[%clk 00:09:59]} {[%emt 00:00:15]}
16. Ne4 {[%clk 00:11:28]} {[%emt 00:00:28]} f5 {[%clk 00:08:59]} {[%emt
00:01:05]} 17. exf6 {[%clk 00:11:16]} {[%emt 00:00:18]} Bxf6 {[%clk 00:09:03]}
{[%emt 00:00:01]} 18. Nxc5 {[%clk 00:11:06]} {[%emt 00:00:14]} b6 {[%clk
00:08:42]} {[%emt 00:00:27]} 19. Ne4 {[%clk 00:10:58]} {[%emt 00:00:13]} e5
{[%clk 00:08:43]} {[%emt 00:00:04]} 20. Nxf6+ {[%clk 00:10:52]} {[%emt
00:00:11]} Qxf6 {[%clk 00:08:46]} {[%emt 00:00:02]} 21. Nxe5 {[%clk 00:10:28]}
{[%emt 00:00:29]} Bb7 {[%clk 00:07:26]} {[%emt 00:01:25]} 22. Bd5+ {[%clk
00:08:29]} {[%emt 00:02:03]} Ne6 {[%clk 00:06:39]} {[%emt 00:00:52]} 23. Ng4
{[%clk 00:07:20]} {[%emt 00:01:15]} Qd8 {[%clk 00:04:50]} {[%emt 00:01:54]} 24.
Bxe6+ {[%clk 00:07:09]} {[%emt 00:00:16]} Kh8 {[%clk 00:04:51]} {[%emt
00:00:04]} 25. Nxh6 {[%clk 00:06:04]} {[%emt 00:01:10]} gxh6 {[%clk 00:03:34]}
{[%emt 00:01:21]} 26. Be5+ {[%clk 00:05:34]} {[%emt 00:00:35]} Nxe5 {[%clk
00:03:36]} {[%emt 00:00:04]} 27. Qxe5+ {[%clk 00:05:37]} Kh7 {[%clk 00:03:27]}
{[%emt 00:00:14]} 28. Qf5+ {[%clk 00:05:37]} {[%emt 00:00:05]} Kh8 {[%emt
00:00:20]} 29. Qe5+ {[%emt 00:00:51]} Kh7 {[%emt 00:00:02]} 30. Bf5+ {[%clk
00:05:37]} {[%emt 00:00:04]} Kg8 {[%clk 00:01:54]} 1-0